bitfinex/quotes_BTCUSD_20250129
["timestamp","ask_amount","ask_price","bid_price","bid_amount"]
[1738148782486,1.25582164,102480.0,102470.0,0.0001423]
[1738148782700,1.31345507,102480.0,102470.0,0.0001423]
[1738148782906,1.25582164,102480.0,102470.0,0.0011423]
[1738148783331,1.25582164,102480.0,102470.0,0.0041423]
[1738148783548,1.25582164,102480.0,102470.0,0.0001423]
[1738148783959,1.25782164,102480.0,102470.0,0.0001423]
[1738148785139,1.25882164,102480.0,102470.0,0.0001423]
[1738148788138,1.13846488,102480.0,102470.0,0.0001423]
[1738148788349,1.09083145,102480.0,102470.0,0.0001423]
[1738148788556,1.08083145,102480.0,102470.0,0.0001423]
[1738148788772,0.85948829,102480.0,102470.0,0.05777573]
[1738148789037,0.85948829,102480.0,102470.0,0.25467573]
[1738148789246,0.85948829,102480.0,102470.0,0.33517573]
[1738148789451,0.85948829,102480.0,102470.0,0.43241889]
[1738148789659,0.85648829,102480.0,102470.0,0.49005232]
[1738148789858,0.85848829,102480.0,102470.0,0.46286089]
[1738148790068,0.85948829,102480.0,102470.0,0.46286089]
[1738148790290,0.85748829,102480.0,102470.0,0.46286089]
[1738148790505,0.85748829,102480.0,102470.0,0.49702327]
[1738148791377,0.85748829,102480.0,102470.0,0.58081908]
[1738148791997,0.85648829,102480.0,102470.0,0.58081908]
[1738148792423,0.85648829,102480.0,102470.0,0.58181908]
[1738148792622,0.85648829,102480.0,102470.0,0.60481908]
[1738148792824,0.80764347,102480.0,102470.0,0.60381908]
[1738148793029,0.80864347,102480.0,102470.0,0.61081908]
[1738148793296,0.80764347,102480.0,102470.0,0.60381908]
[1738148793715,0.80764347,102480.0,102470.0,0.60681908]
[1738148794363,0.80764347,102480.0,102470.0,0.61675292]
[1738148794981,0.80764347,102480.0,102470.0,0.50595711]
[1738148795394,0.80764347,102480.0,102470.0,0.59375292]
[1738148795600,0.80764347,102480.0,102470.0,0.59475292]
[1738148797401,0.80764347,102480.0,102470.0,0.61450497]
[1738148797992,0.80764347,102480.0,102470.0,0.62258497]
[1738148800399,0.80764347,102480.0,102470.0,0.61450497]
[1738148800585,0.80764347,102480.0,102470.0,0.62254497]
[1738148803257,0.80764347,102480.0,102470.0,0.61450497]
[1738148803413,0.80764347,102480.0,102470.0,0.64554497]
[1738148804201,0.80764347,102480.0,102470.0,0.74554497]
[1738148804469,0.80764347,102480.0,102470.0,0.73350497]
[1738148804607,0.80764347,102480.0,102470.0,1.27544497]
[1738148804809,0.80864347,102480.0,102470.0,1.28744497]
[1738148805008,0.80764347,102480.0,102470.0,1.27844497]
[1738148805208,0.80764347,102480.0,102470.0,1.27544497]
[1738148805622,0.80764347,102480.0,102470.0,1.27644497]
[1738148806067,0.80764347,102480.0,102470.0,1.27944497]
[1738148812228,0.80764347,102480.0,102470.0,1.29944497]
[1738148812451,0.80764347,102480.0,102470.0,1.33538601]
[1738148812708,0.77150945,102480.0,102470.0,1.359271]
[1738148813602,0.77150945,102480.0,102470.0,1.33332996]
[1738148814883,0.77150945,102480.0,102470.0,1.359271]
[1738148815111,0.74905284,102480.0,102470.0,1.36201767]
[1738148815705,0.74905284,102480.0,102470.0,1.42064767]
[1738148816773,0.74424284,102480.0,102470.0,1.42064767]
[1738148818716,0.74424284,102480.0,102470.0,1.39470663]
[1738148820136,0.71795284,102480.0,102470.0,1.39470663]
[1738148820377,0.71224284,102480.0,102470.0,1.39470663]
[1738148820758,0.68566284,102480.0,102470.0,1.82120663]
[1738148821091,0.63169351,102480.0,102470.0,1.85278605]
[1738148821808,0.63169351,102480.0,102470.0,1.84978605]
[1738148822009,0.60499351,102480.0,102470.0,1.84978605]
[1738148822211,0.60499351,102480.0,102470.0,1.85478605]
[1738148822591,0.60499351,102480.0,102470.0,1.86287501]
[1738148822919,0.60499351,102480.0,102470.0,1.83608845]
[1738148823284,0.60499351,102480.0,102470.0,1.83508845]
[1738148823629,0.60499351,102480.0,102470.0,1.83608845]
[1738148824143,0.60499351,102480.0,102470.0,1.83508845]
[1738148824341,0.60499351,102480.0,102470.0,1.83608845]
[1738148824960,0.60499351,102480.0,102470.0,1.84108845]
[1738148827469,0.57785351,102480.0,102470.0,1.86787501]
[1738148829377,0.57785351,102480.0,102470.0,1.84108845]
[1738148832154,0.45585768,102480.0,102470.0,1.84108845]
[1738148836713,0.45585768,102480.0,102470.0,1.83833962]
[1738148837445,0.45585768,102480.0,102470.0,1.72833962]
[1738148837631,0.45585768,102480.0,102470.0,1.83833962]
[1738148843201,0.45585768,102480.0,102470.0,1.83029962]
[1738148843314,0.45585768,102480.0,102470.0,1.74067962]
[1738148843513,0.45585768,102480.0,102470.0,1.62213962]
[1738148843835,0.45585768,102480.0,102470.0,1.52213962]
[1738148844083,0.45585768,102480.0,102470.0,1.67090507]
[1738148845331,0.45585768,102480.0,102470.0,1.69090507]
[1738148845480,0.45585768,102480.0,102470.0,1.67090507]
[1738148845694,0.45585768,102480.0,102470.0,1.69090507]
[1738148845876,0.45585768,102480.0,102470.0,1.68286507]
[1738148846072,0.45585768,102480.0,102470.0,1.66286507]
[1738148846385,0.45585768,102480.0,102470.0,1.67090507]
[1738148848397,0.45585768,102480.0,102470.0,1.66286507]
[1738148848599,0.53425768,102480.0,102470.0,1.35530244]
[1738148848830,0.58335768,102480.0,102470.0,0.80644244]
[1738148849043,0.58335768,102480.0,102470.0,0.79840244]
[1738148849243,0.58335768,102480.0,102470.0,0.78105201]
[1738148849469,0.58335768,102480.0,102470.0,0.77111817]
[1738148849608,0.58335768,102480.0,102470.0,0.92111817]
[1738148849837,0.58335768,102480.0,102470.0,0.92011817]
[1738148850032,0.58335768,102480.0,102470.0,0.93076111]
[1738148850246,0.58335768,102480.0,102470.0,0.92176111]
[1738148850672,0.58335768,102480.0,102470.0,0.89542163]
[1738148851076,0.58335768,102480.0,102470.0,0.89342163]
[1738148851278,0.58435768,102480.0,102470.0,0.89342163]
[1738148851646,0.58435768,102480.0,102470.0,0.88777869]
[1738148852049,0.58535768,102480.0,102470.0,0.89343243]
[1738148854171,0.58535768,102480.0,102470.0,0.80580698]
[1738148856478,0.58535768,102480.0,102470.0,0.77536498]
[1738148856782,0.58535768,102480.0,102470.0,0.80572341]
[1738148857516,0.58535768,102480.0,102470.0,0.77536498]
[1738148858047,0.58535768,102480.0,102470.0,0.62536498]
[1738148858463,0.58535768,102480.0,102470.0,0.76971124]
[1738148858667,0.59535768,102480.0,102470.0,0.76971124]
[1738148858849,0.59535768,102480.0,102470.0,0.77537424]
[1738148859794,0.59535768,102480.0,102470.0,0.76971124]
[1738148860200,0.59535768,102480.0,102470.0,0.77537424]
[1738148860406,0.59535768,102480.0,102470.0,0.76733424]
[1738148860705,0.59535768,102480.0,102470.0,0.77537424]
[1738148861948,0.59535768,102480.0,102470.0,0.76971124]
[1738148868674,0.59535768,102480.0,102470.0,0.76167124]
[1738148868878,0.59535768,102480.0,102470.0,0.76971124]
[1738148870695,0.59535768,102480.0,102470.0,0.73954619]
[1738148873321,0.59535768,102480.0,102470.0,0.73150619]
[1738148873549,0.59535768,102480.0,102470.0,0.73954619]
[1738148873746,0.59535768,102480.0,102470.0,0.73150619]
[1738148873963,0.59535768,102480.0,102470.0,0.73954619]
[1738148874166,0.59535768,102480.0,102470.0,0.63426303]
[1738148874375,0.59535768,102480.0,102470.0,0.64230303]
[1738148875336,0.59335768,102480.0,102470.0,0.64230303]
[1738148875491,0.59335768,102480.0,102470.0,0.64330303]
[1738148876789,0.59335768,102480.0,102470.0,0.64930303]
[1738148877146,0.59335768,102480.0,102470.0,0.64330303]
[1738148878657,0.59335768,102480.0,102470.0,0.64630303]
[1738148883484,0.59335768,102480.0,102470.0,0.67676904]
[1738148885225,0.59335768,102480.0,102470.0,0.64630303]
[1738148885386,0.59335768,102480.0,102470.0,0.63826303]
[1738148885584,0.59335768,102480.0,102470.0,0.64630303]
[1738148900266,0.46585768,102480.0,102470.0,0.74354619]
[1738148902483,0.46585768,102480.0,102470.0,0.77401621]
[1738148902663,0.46585768,102480.0,102470.0,0.74354619]
[1738148903259,0.54745768,102480.0,102470.0,0.74354619]
[1738148904570,0.54745768,102480.0,102470.0,0.64630303]
[1738148905467,0.54745768,102480.0,102470.0,0.67678366]
[1738148908523,0.54745768,102480.0,102470.0,0.61916293]
[1738148909373,0.54745768,102480.0,102470.0,0.67678366]
[1738148911884,0.46585768,102480.0,102470.0,0.77402682]
[1738148915605,0.46585768,102480.0,102470.0,0.76598682]
[1738148916749,0.46585768,102480.0,102470.0,0.33948682]
[1738148918085,0.46585768,102480.0,102470.0,0.35924993]
[1738148918498,0.46585768,102480.0,102470.0,0.44330755]
[1738148918711,0.46585768,102480.0,102470.0,0.52300755]
[1738148924465,0.46585768,102480.0,102470.0,0.5330101]
[1738148930071,0.46585768,102480.0,102470.0,0.55267979]
[1738148931651,0.46585768,102480.0,102470.0,0.5330101]
[1738148935314,0.46585768,102480.0,102470.0,0.8550101]
[1738148935686,0.46585768,102480.0,102470.0,0.86210183]
[1738148941025,0.46585768,102480.0,102470.0,0.73620183]
[1738148941379,0.46585768,102480.0,102470.0,0.66857855]
[1738148941581,0.54385768,102480.0,102470.0,0.67657855]
[1738148941785,0.54385768,102480.0,102470.0,0.66948682]
[1738148945178,0.54385768,102480.0,102470.0,0.66148682]
[1738148945387,0.54385768,102480.0,102470.0,0.66948682]
[1738148945602,0.54385768,102480.0,102470.0,0.72710755]
[1738148945799,0.46585768,102480.0,102470.0,0.72710755]
[1738148952427,0.46585768,102480.0,102470.0,0.74699772]
[1738148955731,0.46585768,102480.0,102470.0,0.75430656]
[1738148978227,0.46585768,102480.0,102470.0,0.77730656]
[1738148979474,0.46585768,102480.0,102470.0,0.91022729]
[1738148980029,0.46585768,102480.0,102470.0,0.96052729]
[1738148980203,0.46585768,102480.0,102470.0,0.95852729]
[1738148980406,0.46585768,102480.0,102470.0,0.96452729]
[1738148980638,0.46585768,102480.0,102470.0,0.95852729]
[1738148980998,0.46785768,102480.0,102470.0,0.95852729]
[1738148982653,0.46785768,102480.0,102470.0,1.59242729]
[1738148984846,0.46785768,102480.0,102470.0,1.59238729]
[1738148985038,0.46785768,102480.0,102470.0,1.62238729]
[1738148986306,0.46585768,102480.0,102470.0,1.71001274]
[1738148986423,0.46585768,102480.0,102470.0,1.71101274]
[1738148986624,0.46585768,102480.0,102470.0,1.71601274]
[1738148987063,0.46585768,102480.0,102470.0,1.71501274]
[1738148987466,0.46585768,102480.0,102470.0,1.71601274]
[1738148989438,0.46585768,102480.0,102470.0,1.62838729]
[1738148992627,0.46585768,102480.0,102470.0,1.51838729]
[1738148993036,0.46585768,102480.0,102470.0,1.61838729]
[1738148993297,0.46585768,102480.0,102470.0,1.50980656]
[1738148993507,0.46585768,102480.0,102470.0,1.43846656]
[1738148994486,0.46585768,102480.0,102470.0,1.46146656]
[1738148994891,0.46585768,102480.0,102470.0,1.51908729]
[1738148995515,0.46585768,102480.0,102470.0,1.46146656]
[1738148995808,0.46585768,102480.0,102470.0,1.51908729]
[1738148996011,0.46585768,102480.0,102470.0,1.46146656]
[1738148996492,0.46585768,102480.0,102470.0,1.51908729]
[1738148997755,0.46585768,102480.0,102470.0,1.53908729]
[1738148999212,0.46585768,102480.0,102470.0,1.62058729]
[1738148999615,0.46585768,102480.0,102470.0,1.63058729]
[1738149000730,0.46585768,102480.0,102470.0,1.62058729]
[1738149000961,0.46585768,102480.0,102470.0,1.63058729]
[1738149001376,0.46585768,102480.0,102470.0,1.62058729]
[1738149001508,0.46326041,102480.0,102470.0,1.62058729]
[1738149002503,0.46326041,102480.0,102470.0,1.70812856]
[1738149004825,0.46326041,102480.0,102470.0,1.76675856]
[1738149004970,0.46326041,102480.0,102470.0,1.70812856]
[1738149008023,0.46326041,102480.0,102470.0,1.71812856]
[1738149014755,0.46326041,102480.0,102470.0,1.70812856]
[1738149016050,0.44963586,102480.0,102470.0,1.70812856]
[1738149020130,0.44963586,102480.0,102470.0,1.62662856]
[1738149020828,0.44963586,102480.0,102470.0,1.55832856]
[1738149022980,0.44963586,102480.0,102470.0,1.57832856]
[1738149023972,0.44963586,102480.0,102470.0,1.50070783]
[1738149024169,0.44963586,102480.0,102470.0,1.55832856]
[1738149024659,0.44963586,102480.0,102470.0,1.57832856]
[1738149024870,0.44963586,102480.0,102470.0,1.63693856]
[1738149025067,0.44963586,102480.0,102470.0,1.57832856]
[1738149025480,0.44963586,102480.0,102470.0,1.55832856]
[1738149026054,0.57223586,102480.0,102470.0,1.24274783]
[1738149026260,0.57223586,102480.0,102470.0,1.22770783]
[1738149026385,0.57223586,102480.0,102470.0,1.21974783]
[1738149026592,0.57223586,102480.0,102470.0,1.22770783]
[1738149027070,0.57223586,102480.0,102470.0,1.37770783]
[1738149030577,0.57223586,102480.0,102470.0,0.84380783]
[1738149031153,0.57223586,102480.0,102470.0,0.83584783]
[1738149031360,0.57223586,102480.0,102470.0,0.7861871]
[1738149031563,0.57223586,102480.0,102470.0,0.84380783]
[1738149031763,0.57223586,102480.0,102470.0,0.78806999]
[1738149031971,0.57223586,102480.0,102470.0,0.75814945]
[1738149033296,0.44963586,102480.0,102470.0,0.81577018]
[1738149033443,0.44963586,102480.0,102470.0,0.75814945]
[1738149043097,0.44963586,102480.0,102470.0,0.75814945]
[1738149046575,0.57073586,102480.0,102470.0,0.70048872]
[1738149047192,0.57073586,102480.0,102470.0,0.68059855]
[1738149047403,0.57073586,102480.0,102470.0,0.67959855]
[1738149047743,0.57073586,102480.0,102470.0,0.67559855]
[1738149047948,0.57073586,102480.0,102470.0,0.68059855]
[1738149048365,0.57073586,102480.0,102470.0,0.67459855]
[1738149048767,0.57073586,102480.0,102470.0,0.67659855]
[1738149049191,0.57073586,102480.0,102470.0,0.66867855]
[1738149049589,0.57073586,102480.0,102470.0,0.67659855]
[1738149050683,0.57073586,102480.0,102470.0,0.58057719]
[1738149050899,0.57073586,102480.0,102470.0,0.43849719]
[1738149051341,0.57073586,102480.0,102470.0,0.64611792]
[1738149051549,0.57073586,102480.0,102470.0,0.64411792]
[1738149051762,0.57073586,102480.0,102470.0,0.64611792]
[1738149052192,0.57073586,102480.0,102470.0,0.64411792]
[1738149052398,0.57173586,102480.0,102470.0,0.64411792]
[1738149053510,0.57273586,102480.0,102470.0,0.64411792]
[1738149054238,0.57273586,102480.0,102470.0,0.32211792]
[1738149057372,0.57273586,102480.0,102470.0,0.31419792]
[1738149057527,0.57273586,102480.0,102470.0,0.32211792]
[1738149069583,0.52753586,102480.0,102470.0,0.37973865]
[1738149069999,0.52753586,102480.0,102470.0,0.32211792]
[1738149072896,0.52753586,102480.0,102470.0,0.35252099]
[1738149073337,0.52753586,102480.0,102470.0,0.34460099]
[1738149073642,0.52753586,102480.0,102470.0,0.35252099]
[1738149074982,0.45163586,102480.0,102470.0,0.41978369]
[1738149076136,0.45063586,102480.0,102470.0,0.41978369]
[1738149076319,0.44963586,102480.0,102470.0,0.41978369]
[1738149076502,0.44963586,102480.0,102470.0,0.42178369]
[1738149077742,0.44963586,102480.0,102470.0,0.41978369]
[1738149077933,0.44963586,102480.0,102470.0,0.74178369]
[1738149078185,0.45063586,102480.0,102470.0,0.89468369]
[1738149078407,0.45163586,102480.0,102470.0,0.99468369]
[1738149079220,0.45163586,102480.0,102470.0,0.87168369]
[1738149079428,0.45163586,102480.0,102470.0,0.79058369]
[1738149080458,0.44941158,102480.0,102470.0,0.79058369]
[1738149083257,0.44941158,102480.0,102470.0,0.86648369]
[1738149083459,0.44941158,102480.0,102470.0,0.92410442]
[1738149083680,0.44941158,102480.0,102470.0,0.86648369]
[1738149085891,0.44941158,102480.0,102470.0,0.96710442]
[1738149086236,0.44941158,102480.0,102470.0,0.90948369]
[1738149086661,0.44941158,102480.0,102470.0,0.96710442]
[1738149088570,0.44941158,102480.0,102470.0,0.94710442]
[1738149088966,0.44941158,102480.0,102470.0,1.58100442]
[1738149089178,0.44941158,102480.0,102470.0,1.52338369]
[1738149090114,0.4447027,102480.0,102470.0,1.52338369]
[1738149091817,0.4447027,102480.0,102470.0,1.42338369]
[1738149092019,0.4447027,102480.0,102470.0,1.52338369]
[1738149094041,0.4447027,102480.0,102470.0,1.58100442]
[1738149094392,0.4447027,102480.0,102470.0,1.60100442]
[1738149096636,0.4447027,102480.0,102470.0,1.58100442]
[1738149096799,0.4447027,102480.0,102470.0,1.60100442]
[1738149097201,0.43348448,102480.0,102470.0,1.60100442]
[1738149098968,0.43348448,102480.0,102470.0,1.58100442]
[1738149100666,0.43348448,102480.0,102470.0,1.52338369]
[1738149101232,0.43348448,102480.0,102470.0,1.51546369]
[1738149101431,0.43348448,102480.0,102470.0,1.39868369]
[1738149102595,0.51498448,102480.0,102470.0,0.52624296]
[1738149102810,0.51498448,102480.0,102470.0,0.53416296]
[1738149103429,0.51498448,102480.0,102470.0,0.68416296]
[1738149104041,0.51498448,102480.0,102470.0,0.67624296]
[1738149104247,0.51498448,102480.0,102470.0,0.68416296]
[1738149107801,0.51498448,102480.0,102470.0,0.74178369]
[1738149112026,0.51498448,102480.0,102470.0,0.73386369]
[1738149112237,0.51498448,102480.0,102470.0,0.74178369]
[1738149119545,0.51498448,102480.0,102470.0,0.73386369]
[1738149119742,0.51498448,102480.0,102470.0,0.74178369]
[1738149122539,0.43348448,102480.0,102470.0,0.92230442]
[1738149123551,0.43348448,102480.0,102470.0,0.94530442]
[1738149125573,0.43348448,102480.0,102470.0,1.47920442]
[1738149126829,0.43348448,102480.0,102470.0,1.49856395]
[1738149131599,0.43348448,102480.0,102470.0,1.34134322]
[1738149131814,0.43348448,102480.0,102470.0,1.29504322]
[1738149135655,0.43348448,102480.0,102470.0,1.28773438]
[1738149135759,0.43348448,102480.0,102470.0,1.35297171]
[1738149137337,0.43348448,102480.0,102470.0,0.81907171]
[1738149139969,0.43348448,102480.0,102470.0,0.76145098]
[1738149140481,0.43348448,102480.0,102470.0,0.81907171]
[1738149141027,0.43348448,102480.0,102470.0,0.84207171]
[1738149143346,0.43348448,102480.0,102470.0,1.37597171]
[1738149144421,0.43348448,102480.0,102470.0,1.45187171]
[1738149157282,0.43348448,102480.0,102470.0,1.55187171]
[1738149157437,0.43078174,102480.0,102470.0,2.04677171]
[1738149157644,0.43078174,102480.0,102470.0,2.05677171]
[1738149157645,0.39592352,102480.0,102470.0,2.05677171]
[1738149157860,0.39592352,102480.0,102470.0,2.11538171]
[1738149158450,0.39492352,102480.0,102470.0,2.11538171]
[1738149158887,0.39492352,102480.0,102470.0,2.11738171]
[1738149159403,0.39392352,102480.0,102470.0,2.12238171]
[1738149160003,0.38392352,102480.0,102470.0,2.11238171]
[1738149160666,0.38392352,102480.0,102470.0,2.11338171]
[1738149162309,0.38392352,102480.0,102470.0,2.11334171]
[1738149162515,0.38392352,102480.0,102470.0,2.10334171]
[1738149163535,0.38392352,102480.0,102470.0,2.11334171]
[1738149164342,0.38392352,102480.0,102470.0,2.20095633]
[1738149164690,0.38392352,102480.0,102470.0,2.19095633]
[1738149165103,0.38392352,102480.0,102470.0,2.12446633]
[1738149165343,0.38392352,102480.0,102470.0,2.13234633]
[1738149165544,0.35346352,102480.0,102470.0,2.13234633]
[1738149165950,0.32343352,102480.0,102470.0,2.13234633]
[1738149166160,0.29247352,102480.0,102470.0,2.13234633]
[1738149166367,0.29247352,102480.0,102470.0,2.13264516]
[1738149167411,0.29247352,102480.0,102470.0,2.14264516]
[1738149168536,0.29247352,102480.0,102470.0,2.20125516]
[1738149169361,0.29247352,102480.0,102470.0,2.09125516]
[1738149169571,0.29247352,102480.0,102470.0,2.13264516]
[1738149174049,0.29247352,102480.0,102470.0,2.04886516]
[1738149174227,0.29247352,102480.0,102470.0,2.05674516]
[1738149181085,0.29247352,102480.0,102470.0,2.09577816]
[1738149181506,0.29247352,102480.0,102470.0,1.99577816]
[1738149181686,0.29247352,102480.0,102470.0,2.09577816]
[1738149183432,0.29247352,102480.0,102470.0,2.00816354]
[1738149191242,0.26533352,102480.0,102470.0,2.09056354]
[1738149197001,0.26533352,102480.0,102470.0,2.00816354]
[1738149197141,0.24558682,102480.0,102470.0,2.00816354]
[1738149198147,0.24558682,102480.0,102470.0,1.98816354]
[1738149198351,0.24558682,102480.0,102470.0,2.00816354]
[1738149203957,0.24558682,102480.0,102470.0,1.95976354]
[1738149211733,0.24558682,102480.0,102470.0,1.95788065]
[1738149211934,0.24558682,102480.0,102470.0,1.96084601]
[1738149217647,0.24558682,102480.0,102470.0,1.93296601]
[1738149217866,0.32508682,102480.0,102470.0,1.67119228]
[1738149218076,0.37088682,102480.0,102470.0,1.82119228]
[1738149218489,0.37088682,102480.0,102470.0,1.90181301]
[1738149231020,0.32508682,102480.0,102470.0,1.90181301]
[1738149231220,0.24558682,102480.0,102470.0,1.90181301]
[1738149233803,0.24558682,102480.0,102470.0,1.97931301]
[1738149235230,0.21103682,102480.0,102470.0,1.97931301]
[1738149235474,0.21103682,102480.0,102470.0,1.99931301]
[1738149235896,0.21103682,102480.0,102470.0,2.11382301]
[1738149236783,0.21103682,102480.0,102470.0,2.09382301]
[1738149236992,0.21103682,102480.0,102470.0,2.11382301]
[1738149238867,0.21103682,102480.0,102470.0,2.10382301]
[1738149239070,0.21103682,102480.0,102470.0,2.11382301]
[1738149239379,0.21103682,102480.0,102470.0,2.10382301]
[1738149240654,0.21103682,102480.0,102470.0,2.00382301]
[1738149240889,0.21103682,102480.0,102470.0,1.92177301]
[1738149241276,0.21103682,102480.0,102470.0,1.98037301]
[1738149241497,0.21103682,102480.0,102470.0,1.92177301]
[1738149247275,0.21103682,102480.0,102470.0,1.06587301]
[1738149248021,0.21073173,102480.0,102470.0,1.06587301]
[1738149250277,0.18160173,102480.0,102470.0,1.06587301]
[1738149250480,0.16481516,102480.0,102470.0,1.12427301]
[1738149250690,0.15672394,102480.0,102470.0,1.18287301]
[1738149250889,0.15141777,102480.0,102470.0,1.19287301]
[1738149257248,0.15141777,102480.0,102470.0,1.11447301]
[1738149261027,0.15141777,102480.0,102470.0,1.04587301]
[1738149264975,0.15141777,102480.0,102470.0,1.90177301]
[1738149267698,0.15141777,102480.0,102470.0,1.80177301]
[1738149267918,0.15141777,102480.0,102470.0,1.90177301]
[1738149268265,0.15141777,102480.0,102470.0,1.80177301]
[1738149268396,0.15141777,102480.0,102470.0,1.90177301]
[1738149269619,0.15141777,102480.0,102470.0,1.80177301]
[1738149269952,0.15141777,102480.0,102470.0,1.89393301]
[1738149270157,0.23001777,102480.0,102470.0,1.90177301]
[1738149278145,0.23001777,102480.0,102470.0,1.80177301]
[1738149278324,0.23001777,102480.0,102470.0,1.90177301]
[1738149284226,0.23001777,102480.0,102470.0,1.80177301]
[1738149284422,0.23001777,102480.0,102470.0,1.90177301]
[1738149288063,0.23001777,102480.0,102470.0,1.75177301]
[1738149288968,0.23001777,102480.0,102470.0,1.90177301]
[1738149291608,0.23001777,102480.0,102470.0,1.75177301]
[1738149292013,0.23001777,102480.0,102470.0,1.90177301]
[1738149297077,0.15141777,102480.0,102470.0,1.90177301]
[1738149302727,0.22941777,102480.0,102470.0,1.90177301]
[1738149303763,0.22941777,102480.0,102470.0,1.90044198]
[1738149303920,0.22941777,102480.0,102470.0,1.90884851]
[1738149304325,0.15141777,102480.0,102470.0,1.90884851]
[1738149304785,0.14593064,102480.0,102470.0,1.90884851]
[1738149305449,0.02938867,102480.0,102470.0,2.09294851]
[1738149305678,9.99725391,102500.0,102490.0,0.1]
[1738149305899,9.99725391,102500.0,102490.0,2.92175948]
[1738149305900,9.9640305,102500.0,102490.0,2.92175948]
[1738149306109,9.9630342,102500.0,102490.0,3.04611107]
[1738149308475,9.9630342,102500.0,102490.0,3.05011107]
[1738149308718,9.9630342,102500.0,102490.0,3.15011107]
[1738149308922,9.9630342,102500.0,102490.0,3.15411107]
[1738149309697,9.9630342,102500.0,102490.0,2.29821107]
[1738149310316,9.9630342,102500.0,102490.0,2.38587506]
[1738149310934,9.88985167,102500.0,102490.0,2.38587506]
[1738149312114,9.88985167,102500.0,102490.0,2.36587506]
[1738149312331,9.88985167,102500.0,102490.0,2.38587506]
[1738149312465,9.88985167,102500.0,102490.0,2.38560159]
[1738149312674,9.88985167,102500.0,102490.0,2.40560159]
[1738149313781,9.88985167,102500.0,102490.0,2.39560159]
[1738149313938,9.88985167,102500.0,102490.0,2.37560159]
[1738149314142,9.88985167,102500.0,102490.0,2.2102376]
[1738149314373,9.88985167,102500.0,102490.0,2.0725376]
[1738149314694,9.88985167,102500.0,102490.0,2.0877376]
[1738149314899,9.88985167,102500.0,102490.0,2.1955376]
[1738149315117,9.88999397,102500.0,102490.0,2.0955376]
[1738149315327,9.88999397,102500.0,102490.0,2.1955376]
[1738149315498,9.88999397,102500.0,102490.0,3.0514376]
[1738149316081,9.88999397,102500.0,102490.0,3.0436376]
[1738149316290,9.88999397,102500.0,102490.0,3.0514376]
[1738149316492,9.88999397,102500.0,102490.0,2.9514376]
[1738149317039,9.88999397,102500.0,102490.0,3.0612428]
[1738149317254,9.88999397,102500.0,102490.0,2.9612428]
[1738149317492,9.88999397,102500.0,102490.0,3.0534428]
[1738149317662,9.88999397,102500.0,102490.0,2.9612428]
[1738149317892,9.88999397,102500.0,102490.0,3.0612428]
[1738149318042,9.88999397,102500.0,102490.0,3.0534428]
[1738149318243,9.88999397,102500.0,102490.0,3.0612428]
[1738149318484,9.88999397,102500.0,102490.0,3.0534428]
[1738149318661,9.88999397,102500.0,102490.0,3.0612428]
[1738149319324,9.88999397,102500.0,102490.0,3.0534428]
[1738149319563,9.88999397,102500.0,102490.0,3.0612428]
[1738149319771,9.88999397,102500.0,102490.0,3.0534428]
[1738149320844,9.96669397,102500.0,102490.0,3.0612428]
[1738149321073,9.96669397,102500.0,102490.0,3.05519398]
[1738149321557,9.96669397,102500.0,102490.0,2.20218856]
[1738149322140,9.96669397,102500.0,102490.0,2.19760784]
[1738149322733,9.96669397,102500.0,102490.0,2.09460784]
[1738149326781,9.96669397,102500.0,102490.0,2.09490646]
[1738149327428,9.96669397,102500.0,102490.0,2.95080646]
[1738149327886,9.88999397,102500.0,102490.0,2.95080646]
[1738149333352,9.88999397,102500.0,102490.0,2.09490646]
[1738149336100,9.88999397,102500.0,102490.0,0.62603095]
[1738149339404,9.88999397,102500.0,102490.0,1.56959494]
[1738149346403,9.88999397,102500.0,102490.0,1.24759494]
[1738149347369,9.88999397,102500.0,102490.0,0.71369494]
[1738149351195,9.88999397,102500.0,102490.0,1.24759494]
[1738149351777,9.88999397,102500.0,102490.0,1.15993095]
[1738149368757,9.88999397,102500.0,102490.0,1.10231022]
[1738149372861,9.88999397,102500.0,102490.0,1.14133722]
[1738149378056,9.88999397,102500.0,102490.0,1.19895795]
[1738149378419,9.88999397,102500.0,102490.0,1.14133722]
[1738149381336,9.88999397,102500.0,102490.0,1.19895795]
[1738149386673,9.88999397,102500.0,102490.0,1.20755215]
[1738149388310,9.88999397,102500.0,102490.0,1.29075215]
[1738149388523,9.88999397,102500.0,102490.0,1.33905215]
[1738149391384,9.7680217,102500.0,102490.0,1.33905215]
[1738149393175,9.7680217,102500.0,102490.0,1.19975215]
[1738149393380,9.7680217,102500.0,102490.0,1.10755215]
[1738149393654,9.7680217,102500.0,102490.0,1.20755215]
[1738149396354,9.7680217,102500.0,102490.0,1.28325215]
[1738149399049,3.44912601,102500.0,102490.0,1.28325215]
[1738149399191,3.44912601,102500.0,102490.0,1.33845215]
[1738149399393,3.44912601,102500.0,102490.0,1.32864695]
[1738149400683,3.44912601,102500.0,102490.0,1.38724695]
[1738149403055,3.44912601,102500.0,102490.0,1.37724695]
[1738149406063,3.44912601,102500.0,102490.0,1.48024695]
[1738149410240,3.44912601,102500.0,102490.0,1.50024695]
[1738149410658,3.44912601,102500.0,102490.0,1.82224695]
[1738149411568,3.44912601,102500.0,102490.0,2.46790795]
[1738149411569,3.41514361,102500.0,102490.0,2.46790795]
[1738149411725,2.86687637,102500.0,102490.0,2.48917487]
[1738149411935,2.75057056,102500.0,102490.0,2.83425997]
[1738149413206,2.75057056,102500.0,102490.0,2.83325997]
[1738149413910,2.75057056,102500.0,102490.0,2.82925997]
[1738149414302,2.19283762,102500.0,102490.0,2.82925997]
[1738149414515,2.19283762,102500.0,102490.0,2.83125997]
[1738149414719,2.18364736,102500.0,102490.0,2.83125997]
[1738149415068,2.18364736,102500.0,102490.0,2.82925997]
[1738149415280,2.18364736,102500.0,102490.0,2.83125997]
[1738149415890,2.18364736,102500.0,102490.0,2.83825997]
[1738149417202,2.16407194,102500.0,102490.0,2.81564158]
[1738149418364,2.16407194,102500.0,102490.0,2.79317487]
[1738149418986,1.97155194,102500.0,102490.0,2.79317487]
[1738149419285,1.9475891,102500.0,102490.0,2.79317487]
[1738149419496,1.71592163,102500.0,102490.0,2.79317487]
[1738149419639,1.63055233,102500.0,102490.0,2.83825997]
[1738149419842,1.60315583,102500.0,102490.0,2.81564158]
[1738149420043,1.59269673,102500.0,102490.0,2.81564158]
[1738149420759,1.59269673,102500.0,102490.0,2.38313487]
[1738149420966,1.59269673,102500.0,102490.0,2.03817114]
[1738149421186,1.59269673,102500.0,102490.0,1.74619314]
[1738149421343,1.59269673,102500.0,102490.0,1.75695314]
[1738149421542,1.59269673,102500.0,102490.0,1.81457387]
[1738149421745,1.59269673,102500.0,102490.0,1.77695314]
[1738149422157,1.59269673,102500.0,102490.0,1.77995314]
[1738149422359,1.59269673,102500.0,102490.0,1.84657387]
[1738149422783,1.59269673,102500.0,102490.0,2.57865987]
[1738149423208,1.58799579,102500.0,102490.0,2.57865987]
[1738149425587,1.5802277,102500.0,102490.0,2.02275987]
[1738149425992,1.5802277,102500.0,102490.0,1.72275987]
[1738149426219,1.50712086,102500.0,102490.0,1.72275987]
[1738149426597,1.50712086,102500.0,102490.0,1.61275987]